bitfinex-derivatives/quotes_ETHF0:USTF0_20250709
["timestamp","ask_amount","ask_price","bid_price","bid_amount"]
[1752073720258,3.2078,2651.4,2651.1,0.75428]
[1752073720445,0.75426,2651.3,2651.2,2.2214]
[1752073720649,1.43566,2651.3,2651.2,2.2214]
[1752073720853,1.43566,2651.3,2651.2,2.9067]
[1752073721050,0.75436,2650.9,2650.8,3.2078]
[1752073721247,0.6814,2650.9,2650.8,3.8931]
[1752073721452,0.75435,2651.0,2650.9,0.75436]
[1752073721652,0.75429,2651.2,2651.1,0.75429]
[1752073721945,1.43569,2651.2,2651.1,1.43959]
[1752073722147,0.75429,2651.2,2651.1,1.43959]
[1752073722350,1.43569,2651.2,2651.1,1.43959]
[1752073723755,0.6814,2651.2,2651.1,1.43959]
[1752073724255,1.43567,2651.2,2651.1,0.6853]
[1752073724453,1.43567,2651.2,2651.1,1.4396]
[1752073725756,1.43567,2651.2,2651.1,0.6853]
[1752073726557,1.43567,2651.2,2650.9,2.2214]
[1752073726558,0.75433,2651.0,2650.9,2.2214]
[1752073726758,1.43573,2651.0,2650.9,2.9067]
[1752073726959,0.75433,2651.0,2650.9,3.66106]
[1752073727962,1.43573,2651.0,2650.9,3.66106]
[1752073730066,1.43573,2651.0,2650.9,2.9067]
[1752073730569,2.44773,2651.0,2650.9,0.6853]
[1752073730870,0.75442,2650.7,2650.6,0.00566177]
[1752073731065,4.06575248,2650.7,2650.6,0.00566177]
[1752073732670,0.75456,2650.2,2650.1,5.4027]
[1752073732970,0.75456,2650.2,2650.1,6.088]
[1752073733865,0.75456,2650.2,2650.1,6.84258]
[1752073734471,1.43596,2650.2,2650.1,6.84258]
[1752073735066,1.43596,2650.2,2650.1,6.088]
[1752073735265,1.43596,2650.2,2650.1,6.84259]
[1752073735770,0.75454,2650.3,2650.2,0.75456]
[1752073735969,1.43594,2650.3,2650.2,0.75456]
[1752073736166,1.43594,2650.3,2650.2,0.6853]
[1752073736468,0.75456,2650.2,2650.1,6.15727]
[1752073736668,1.43596,2650.2,2650.1,6.84257]
[1752073737265,0.75455,2650.3,2650.2,0.75456]
[1752073737468,0.75449,2650.5,2650.2,0.6853]
[1752073737669,3.2078,2650.7,2650.6,0.75444]
[1752073737872,3.2078,2650.7,2650.6,1.43974]
[1752073738266,3.2078,2650.7,2650.6,2.42514]
[1752073738468,3.2078,2650.7,2650.6,3.63724]
[1752073738666,3.8892,2650.7,2650.6,3.63724]
[1752073738873,3.96222,2650.7,2650.6,3.63724]
[1752073739074,3.2078,2650.7,2650.6,3.63724]
[1752073739273,3.8892,2650.7,2650.6,3.63724]
[1752073739574,0.6814,2650.7,2650.6,3.63724]
[1752073740179,1.43582,2650.7,2650.6,2.8828]
[1752073740468,0.75447,2650.6,2650.5,0.75446]
[1752073740973,0.75447,2650.6,2650.5,1.43976]
[1752073741271,2.44784,2650.7,2650.6,0.75444]
[1752073741774,0.75444,2650.6,2650.5,3.68485]
[1752073741970,0.75447,2650.5,2650.4,3.2078]
[1752073742170,4.06580248,2650.5,2650.4,3.2078]
[1752073742473,0.75447,2650.5,2650.4,3.2078]
[1752073742870,0.75447,2650.5,2650.4,3.9623]
[1752073743069,0.75447,2650.5,2650.4,3.2078]
[1752073743267,0.75447,2650.5,2650.4,3.8931]
[1752073743869,2.44787,2650.5,2650.4,3.2078]
[1752073744871,2.44787,2650.5,2650.4,4.6476]
[1752073745175,2.44787,2650.5,2650.4,3.9623]
[1752073745375,2.44787,2650.5,2650.4,4.6476]
[1752073745573,2.3874,2650.6,2650.5,0.75447]
[1752073745776,0.75443,2650.7,2650.6,0.75441]
[1752073745975,1.43583,2650.7,2650.6,0.75441]
[1752073746374,0.75447,2650.5,2650.4,3.2078]
[1752073746671,4.06580248,2650.5,2650.4,3.2078]
[1752073747579,44.86580248,2650.5,2650.4,3.2078]
[1752073748068,44.86580248,2650.5,2650.0,6.36680198]
[1752073748069,0.75457,2650.3,2650.2,0.75454]
[1752073748676,0.75457,2650.3,2650.2,1.43984]
[1752073749373,2.44797,2650.3,2650.0,7.68807198]
[1752073749568,0.75459,2650.1,2650.0,7.68807198]
[1752073749869,0.75458,2650.2,2650.1,0.75459]
[1752073750280,0.75459,2650.1,2650.0,4.6477]
[1752073750575,0.75459,2650.1,2650.0,4.5981]
[1752073751076,1.43009,2650.1,2650.0,4.5981]
[1752073751478,0.6755,2650.1,2650.0,4.5981]
[1752073751877,1.43009,2650.1,2650.0,4.5981]
[1752073752277,0.75457,2650.2,2650.1,0.75456]
[1752073752469,0.75457,2650.2,2650.1,1.39026]
[1752073752669,1.43007,2650.2,2650.1,1.39026]
[1752073752876,2.3091,2650.4,2650.1,0.6357]
[1752073753180,0.75449,2650.5,2650.4,0.75447]
[1752073753376,1.42999,2650.5,2650.4,1.39017]
[1752073754078,0.75444,2650.6,2650.5,0.75445]
[1752073754273,0.75444,2650.6,2650.5,1.39015]
[1752073754473,1.42994,2650.6,2650.5,1.39015]
[1752073754674,0.75447,2650.5,2650.4,5.4926]
[1752073754976,1.42997,2650.5,2650.4,3.7206]
[1752073756080,0.75442,2650.7,2650.6,0.75442]
[1752073756280,0.7544,2650.8,2650.7,0.75442]
[1752073756579,0.6755,2650.8,2650.7,1.39012]
[1752073759180,0.00566177,2650.9,2650.8,0.75439]
[1752073759479,3.96192,2651.8,2651.6,0.75414]
[1752073759780,3.96192,2651.8,2651.6,1.38984]
[1752073759781,2.16842965,2651.7,2651.6,1.38984]
[1752073759980,1.49292965,2651.7,2651.6,1.38984]
[1752073760181,0.75401,2652.2,2651.7,0.75413]
[1752073760474,1.49268932,2652.1,2652.0,0.75403]
[1752073760674,2.92220932,2652.1,2652.0,1.38973]
[1752073760872,1.42952,2652.1,2652.0,0.6357]
[1752073761280,1.42952,2652.1,2651.7,5.5761]
[1752073761281,5.6755,2652.1,2651.7,3.96192]
[1752073761480,0.75409,2651.9,2651.7,3.2078]
[1752073761680,0.75409,2651.9,2651.8,0.7541]
[1752073761877,1.4296,2651.8,2651.7,3.2078]
[1752073762680,1.4296,2651.8,2651.7,3.96193]
[1752073762987,0.75414,2651.7,2651.6,0.75414]
[1752073763379,0.75414,2651.7,2651.6,1.38984]
[1752073763576,0.7542,2651.5,2651.4,0.75422]
[1752073763782,0.75422,2651.4,2651.3,3.2078]
[1752073764079,1.88554,2651.5,2651.0,3.96211]
[1752073764275,3.31133248,2651.3,2651.0,3.2078]
[1752073764482,8.81603248,2651.6,2651.2,0.75425]
[1752073764780,0.75425,2651.3,2651.2,0.75425]
[1752073764982,0.75425,2651.3,2651.0,3.2078]
[1752073764983,0.7543,2651.1,2651.0,3.96211]
[1752073765179,0.7543,2651.1,2651.0,3.2078]
[1752073765390,2.4175,2651.1,2651.0,3.2078]
[1752073765583,2.4175,2651.1,2651.0,3.96213]
[1752073766081,2.4175,2651.1,2651.0,3.2078]
[1752073766283,2.4175,2651.1,2651.0,3.96213]
[1752073767084,2.4175,2651.1,2651.0,3.2078]
[1752073767283,2.4175,2651.1,2651.0,3.96213]
[1752073767478,1.4298,2651.1,2651.0,3.96213]
[1752073767685,1.4298,2651.1,2651.0,4.59783]
[1752073768081,1.4298,2651.1,2651.0,3.8435]
[1752073768677,1.4298,2651.1,2651.0,3.2078]
[1752073768877,2.4175,2651.1,2651.0,3.8435]
[1752073769584,0.75436,2650.9,2650.8,0.75437]
[1752073769785,0.75439,2650.8,2650.7,3.96221]
[1752073770083,1.42989,2650.8,2650.7,4.59791]
[1752073770484,1.42989,2650.8,2650.7,0.6357]
[1752073771187,1.42989,2650.8,2650.4,5.4677]
[1752073771188,0.75447,2650.5,2650.4,6.22218]
[1752073771389,0.75447,2650.5,2650.4,6.85788]
[1752073771989,1.42997,2650.5,2650.4,6.85788]
[1752073774180,1.42997,2650.5,2650.4,5.4677]
[1752073774387,2.41767,2650.5,2650.4,3.8435]
[1752073774690,1.42997,2650.5,2650.4,3.8435]
[1752073775594,2.41767,2650.5,2650.4,3.8435]
[1752073776785,1.42997,2650.5,2650.4,3.8435]
[1752073776992,2.41767,2650.5,2650.4,3.2078]
[1752073777391,2.41767,2650.5,2650.4,3.8435]
[1752073778794,2.41767,2650.5,2650.4,0.6357]
[1752073780385,2.41767,2650.5,2650.4,0.21757531]
[1752073780585,4.67197,2650.5,2650.4,0.21757531]
[1752073780989,0.75459,2650.1,2650.0,3.9624]
[1752073781192,0.75459,2650.1,2650.0,4.5991]
[1752073781791,0.75458,2650.2,2650.1,0.75456]
[1752073782195,0.75454,2650.3,2650.2,0.75454]
[1752073782389,45.89385,2650.7,2650.2,0.6367]
[1752073782592,0.75451,2650.4,2650.3,5.48911]
[1752073782897,0.75451,2650.4,2650.3,6.12581]
[1752073783393,1.37611,2650.4,2650.3,6.12581]
[1752073783592,0.75451,2650.4,2650.3,6.12581]
[1752073783785,3.2078,2650.7,2650.6,0.75444]
[1752073783993,0.75442,2650.7,2650.6,1.39113]
[1752073784192,0.75442,2650.7,2650.6,1.39114]
[1752073784387,1.37602,2650.7,2650.6,0.6367]
[1752073785092,0.7545,2650.4,2650.3,7.9424]
[1752073786098,0.7545,2650.4,2650.3,3.72723]
[1752073786397,0.7545,2650.4,2650.3,0.6367]
[1752073788400,0.75459,2650.1,2650.0,6.238]
[1752073788594,0.75459,2650.1,2650.0,6.8747]
[1752073788796,0.75464,2649.9,2649.8,3.11615]
[1752073789099,1.88649,2650.1,2649.8,3.11615]
[1752073789100,0.75465,2650.0,2649.9,0.75462]
[1752073789396,0.75464,2649.9,2649.8,6.09815]
[1752073790201,0.75464,2650.0,2649.9,0.75463]
[1752073790499,1.37624,2650.0,2649.9,1.39133]
[1752073790999,1.37624,2650.0,2649.9,0.6367]
[1752073791199,1.37623,2650.0,2649.9,1.39134]
[1752073791396,0.7546,2650.1,2650.0,0.75459]
[1752073791699,1.3762,2650.1,2650.0,3.2078]
[1752073792102,2.3985,2650.1,2650.0,3.2078]
[1752073792295,0.6216,2650.1,2650.0,4.59911]
[1752073792497,0.6216,2650.1,2650.0,6.99281]
[1752073792697,1.37619,2650.1,2650.0,6.99281]
[1752073793095,1.37619,2650.1,2650.0,3.78501]
[1752073794401,0.6216,2650.1,2650.0,3.78501]
[1752073795097,1.37619,2650.1,2650.0,3.78501]
[1752073795498,2.39849,2650.1,2650.0,0.6367]
[1752073795704,2.39849,2650.1,2649.9,0.75462]
[1752073795705,0.75461,2650.0,2649.9,0.75462]
[1752073795996,0.75467,2649.8,2649.7,3.2078]
[1752073796201,0.75467,2649.8,2649.6,3.00411]
[1752073796202,0.7547,2649.7,2649.6,3.00411]
[1752073796404,5.08832248,2649.8,2649.7,0.7547]
[1752073796593,5.08832248,2649.8,2649.6,2.8861]
[1752073796594,0.7547,2649.7,2649.6,3.00411]
[1752073796795,0.75473,2649.6,2649.5,0.75474]
[1752073796998,1.77702,2649.7,2649.6,0.75473]
[1752073797206,0.75472,2649.7,2649.6,0.75473]
[1752073797396,1.37632,2649.7,2649.6,0.75473]
[1752073797597,0.75473,2649.6,2649.5,0.75474]
[1752073797801,0.75476,2649.5,2649.4,6.31347]
[1752073798002,1.37636,2649.5,2649.4,6.95017]
[1752073799903,42.17636,2649.5,2649.4,6.95017]
[1752073800109,1.37636,2649.5,2649.4,6.95017]
[1752073800302,1.37636,2649.5,2649.4,2.3509]
[1752073800603,2.39866,2649.5,2649.4,0.6367]
[1752073800803,2.39866,2649.5,2649.4,1.39149]
[1752073801503,0.6216,2649.5,2649.4,4.59929]
[1752073801707,40.8,2649.6,2649.5,0.75476]
[1752073801901,40.8,2649.6,2649.5,3.06146]
[1752073802204,41.4216,2649.6,2649.5,3.69816]
[1752073802706,40.8,2649.6,2649.5,3.69816]
[1752073803307,1.77695,2649.9,2649.8,0.75467]
[1752073803602,43.19855,2649.9,2649.8,1.39137]
[1752073804002,0.75469,2649.8,2649.7,0.75468]
[1752073804203,1.37629,2649.8,2649.7,1.39138]
[1752073804705,1.37629,2649.8,2649.7,1.3914]
[1752073805106,0.6216,2649.8,2649.7,1.3914]
[1752073805406,1.37627,2649.8,2649.7,3.7455]
[1752073805607,1.37627,2649.8,2649.7,2.9908]
[1752073805803,0.7547,2649.7,2649.6,2.2947]
[1752073806003,0.75473,2649.6,2649.5,0.75474]
[1752073806203,0.75476,2649.5,2649.4,3.96258]
[1752073806399,0.75479,2649.4,2649.3,2.1996]
[1752073806606,1.37639,2649.4,2649.3,2.1996]
[1752073806805,0.75484,2649.2,2649.1,6.83437198]
[1752073807001,0.75487,2649.1,2649.0,4.48027198]
[1752073807206,1.37647,2649.1,2649.0,4.48027198]
[1752073807602,1.3765,2649.1,2649.0,0.6367]
[1752073807906,0.7549,2649.0,2648.9,2.95451]
[1752073808107,1.3765,2649.0,2648.9,5.94531]
[1752073808609,1.3765,2649.0,2648.9,5.1904]
[1752073809807,1.3765,2649.0,2648.9,5.94533]
[1752073810108,3.77353,2649.7,2649.6,0.75472]
[1752073810109,0.75471,2649.7,2649.6,0.75472]
[1752073810315,1.0223,2649.9,2649.6,3.2078]
[1752073810614,0.75468,2649.8,2649.6,3.2078]
[1752073810911,42.57697,2649.9,2649.7,4.6436]
[1752073811112,42.57697,2649.9,2649.8,0.75467]
[1752073811406,41.8223,2649.9,2649.8,0.75467]
[1752073811614,40.8,2649.9,2649.8,0.75467]
[1752073811849,42.23114,2649.9,2649.8,3.13627]
[1752073812008,41.55464,2649.9,2649.8,3.13627]
[1752073812203,40.8,2649.9,2649.8,3.13627]
[1752073812408,0.6765,2649.9,2649.8,3.13627]
[1752073813013,0.6765,2649.9,2649.8,0.75467]
[1752073813512,1.43114,2649.9,2649.8,0.75467]
[1752073814014,1.43114,2649.9,2649.8,1.39387]
[1752073814214,0.6765,2649.9,2649.8,1.39387]
[1752073814811,41.7987,2650.1,2649.8,0.6392]
[1752073815011,41.7987,2650.1,2650.0,0.75461]
[1752073815313,1.8861,2650.7,2650.2,1.88639]
[1752073815314,0.9987,2650.7,2650.2,1.88639]
[1752073815515,0.9987,2650.7,2650.2,5.09419]
[1752073815710,0.75447,2650.5,2650.4,0.75448]
[1752073815910,1.43097,2650.5,2650.4,2.4244]
[1752073816417,0.75453,2650.3,2650.2,3.2078]
[1752073816617,2.3534,2650.4,2649.8,9.1458]
[1752073816808,3.31133248,2650.2,2649.9,2.4244]
[1752073817013,0.75464,2650.0,2649.8,9.1458]
[1752073817322,0.75464,2650.0,2649.9,0.6392]
[1752073817616,0.7546,2650.1,2649.9,0.6392]
[1752073817811,0.75461,2650.0,2649.9,1.39382]
[1752073818219,0.75461,2650.1,2650.0,0.75461]
[1752073818817,2.42981,2650.1,2650.0,0.75461]
[1752073819019,2.42981,2650.1,2650.0,1.39381]
[1752073819212,1.6752,2650.1,2650.0,1.39381]
[1752073819718,2.42979,2650.1,2650.0,1.39381]
[1752073819911,1.6752,2650.1,2650.0,1.39381]
[1752073820313,3.3521,2650.4,2650.0,0.6392]
[1752073820517,0.75446,2650.6,2650.5,0.75447]
[1752073820717,1.43096,2650.6,2650.5,1.39367]
[1752073821014,40.8,2650.7,2650.6,0.75444]
[1752073821215,40.8,2650.7,2650.6,1.39364]
[1752073821420,4.2065,2651.2,2650.9,0.75435]
[1752073821621,0.6765,2651.0,2650.9,1.39355]
[1752073821816,41.4765,2651.0,2650.9,1.39355]
[1752073822012,42.23083,2651.0,2650.9,0.6392]
[1752073822221,43.22953,2651.0,2650.9,0.6392]
[1752073822530,43.22953,2651.0,2650.7,3.125]
[1752073822531,0.75438,2650.9,2650.8,0.75437]
[1752073822722,1.43088,2650.9,2650.8,1.39357]
[1752073824028,2.2498,2651.2,2651.1,0.7543]
[1752073824229,1.75296,2651.3,2651.2,0.75427]
[1752073824434,42.4752,2651.3,2651.0,3.2078]
[1752073824727,0.7543,2651.1,2651.0,3.96212]
[1752073824926,0.6765,2651.1,2651.0,3.847]
[1752073825226,0.6765,2651.1,2651.0,4.60131]
[1752073825923,3.96201,2651.5,2651.4,0.75422]
[1752073826131,1.88528,2651.8,2651.6,0.75414]
[1752073826132,3.2078,2651.8,2651.6,0.75414]
[1752073826328,40.8,2651.7,2651.6,1.39334]
[1752073826530,42.23063,2651.7,2651.6,1.39334]
[1752073826830,41.55413,2651.7,2651.6,1.39336]
[1752073827028,40.8,2651.7,2651.6,1.39336]
[1752073827333,3.2078,2651.8,2651.7,0.75413]
[1752073827628,3.8843,2651.8,2651.7,1.39333]
[1752073827823,45.4384,2651.8,2651.7,0.6392]
[1752073828019,0.75418,2651.6,2651.5,0.75418]
[1752073828232,0.75419,2651.5,2651.4,3.2078]
[1752073828429,1.43069,2651.5,2651.4,3.847]
[1752073828826,0.75416,2651.6,2651.5,0.75416]
[1752073829029,0.75416,2651.6,2651.5,1.39336]
[1752073829030,1.43066,2651.6,2651.5,1.39336]
[1752073829425,1.43066,2651.6,2651.5,0.6392]
[1752073829621,0.6765,2651.6,2651.5,1.39339]
[1752073829827,0.6765,2651.6,2651.5,3.62499]
[1752073830532,41.55412,2651.8,2651.7,0.75413]
[1752073830727,0.75414,2651.7,2651.6,0.75414]
[1752073830923,40.8,2651.8,2651.6,3.2078]
[1752073831129,0.75424,2651.3,2651.2,2.2637]
[1752073831328,0.7543,2651.1,2651.0,3.2078]
[1752073831535,0.7543,2651.1,2651.0,3.847]
[1752073832332,0.7543,2651.1,2651.0,4.60132]
[1752073832530,0.75429,2651.2,2651.1,0.75429]
[1752073833535,0.7543,2651.1,2651.0,4.60133]
[1752073834238,0.75429,2651.2,2651.1,0.7543]
[1752073834537,0.7543,2651.1,2651.0,4.60131]
[1752073834831,0.7543,2651.1,2651.0,3.847]
[1752073835331,0.7543,2651.1,2651.0,3.2078]
[1752073835530,0.7543,2651.1,2650.6,2.2616]
[1752073835531,0.75439,2650.8,2650.7,0.75441]
[1752073835726,0.75442,2650.7,2650.6,3.2078]
[1752073836132,5.74095248,2650.7,2650.6,0.6392]
[1752073838229,0.75444,2650.6,2650.5,3.2078]
[1752073838434,2.42964,2650.6,2650.5,3.2078]
[1752073839329,0.75453,2650.3,2650.2,3.2078]
[1752073839530,2.42973,2650.3,2650.2,3.2078]
[1752073840134,0.75461,2650.0,2649.9,0.75464]
[1752073840336,1.43111,2650.0,2649.9,1.39384]
[1752073840638,1.43111,2650.0,2649.9,0.6392]
[1752073841634,0.75464,2649.9,2649.8,3.2078]
[1752073841940,2.32334,2649.9,2649.8,3.875]
[1752073842131,1.39544,2649.9,2649.8,3.2078]
[1752073842337,1.39544,2649.9,2649.8,3.875]
[1752073842532,3.2078,2650.4,2649.8,3.875]
[1752073842533,3.2078,2650.4,2649.8,4.8106]
[1752073842730,3.96232,2650.4,2650.2,0.75455]
[1752073842938,1.39533,2650.3,2650.2,0.6672]
[1752073843138,1.39533,2650.3,2650.1,0.75456]
[1752073843340,1.39533,2650.3,2650.2,1.42176]
[1752073843639,0.75456,2650.2,2650.1,3.96236]
[1752073843840,1.39536,2650.2,2650.1,3.96236]
[1752073844036,0.6408,2650.2,2650.1,4.62956]
[1752073844242,2.32326,2650.2,2650.1,3.2078]
[1752073844433,1.5687,2650.2,2649.9,2.2977]
[1752073844635,0.75461,2650.1,2649.9,0.75463]
[1752073844834,1.39541,2650.0,2649.9,1.42183]
[1752073845042,0.75464,2649.9,2649.8,3.2078]
[1752073845338,1.39544,2649.9,2649.8,4.62967]
[1752073845538,0.75464,2649.9,2649.8,4.62967]
[1752073845737,1.39544,2649.9,2649.8,3.875]
[1752073846236,2.32334,2649.9,2649.8,3.2078]
[1752073846445,1.39544,2649.9,2649.8,3.2078]
[1752073846640,1.39544,2649.9,2649.8,3.875]
[1752073847545,1.39544,2649.9,2649.8,4.62967]
[1752073847741,0.6408,2649.9,2649.8,4.62967]
[1752073848039,1.39544,2649.9,2649.8,4.62967]
[1752073848239,1.39544,2649.9,2649.8,3.2078]
[1752073848440,1.39544,2649.9,2649.8,3.875]
[1752073848744,0.6408,2649.9,2649.8,4.62967]
[1752073848944,1.39544,2649.9,2649.8,4.62967]
[1752073849145,1.39544,2649.9,2649.8,3.875]
[1752073849340,0.6408,2649.9,2649.8,4.62967]
[1752073849741,1.39544,2649.9,2649.8,4.62967]
[1752073850039,2.32334,2649.9,2649.8,4.62967]
[1752073850346,1.5687,2649.9,2649.8,4.62967]
[1752073850639,2.32334,2649.9,2649.8,4.62967]
[1752073850843,5.63467248,2649.9,2649.8,3.2078]
[1752073851047,2.32334,2649.9,2649.8,3.2078]
[1752073851345,2.32334,2649.9,2649.8,3.875]
[1752073851645,2.32334,2649.9,2649.8,3.96247]
[1752073852142,2.32334,2649.9,2649.8,3.2078]
[1752073854351,2.32334,2649.9,2649.8,3.96247]
[1752073855246,2.32334,2649.9,2649.8,3.2078]
[1752073855551,0.75464,2649.9,2649.8,3.2078]
[1752073855743,2.32334,2649.9,2649.8,3.2078]
[1752073856249,0.75476,2649.6,2649.5,0.75471]
[1752073856847,0.75476,2649.5,2649.4,3.96256]
[1752073857152,0.75476,2649.5,2649.4,1.42196]
[1752073857350,1.39556,2649.5,2649.4,0.6672]
[1752073857544,0.75479,2649.4,2649.3,2.2298]
[1752073857747,0.6408,2649.4,2649.3,3.65179]
[1752073858248,0.75473,2649.7,2649.6,0.7547]
[1752073858450,0.75474,2649.6,2649.5,0.75474]
[1752073858753,43.12344,2649.6,2649.5,0.75476]
[1752073858947,41.4408,2649.6,2649.5,1.42196]
[1752073859149,41.4408,2649.6,2649.5,0.75476]
[1752073859150,1.39553,2649.6,2649.5,0.75476]
[1752073859446,0.75476,2649.5,2649.4,3.2078]
[1752073859657,0.75476,2649.5,2649.4,4.62979]
[1752073859846,40.8,2649.7,2649.6,0.75473]
[1752073860049,0.75474,2649.6,2649.5,0.75473]
[1752073860340,1.39554,2649.6,2649.5,2.8842]
[1752073860746,0.75476,2649.5,2649.4,3.2078]
[1752073860942,2.32346,2649.5,2649.4,3.2078]
[1752073861950,0.75487,2649.1,2649.0,14.49399]
[1752073862144,1.39567,2649.1,2649.0,15.16119]
[1752073862543,0.6408,2649.1,2649.0,15.16119]
[1752073862748,1.39567,2649.1,2649.0,15.16119]
[1752073863149,1.39567,2649.1,2649.0,12.27699]
[1752073863350,1.39567,2649.1,2649.0,12.1893]
[1752073863547,1.39567,2649.1,2649.0,12.9442]
[1752073864350,1.39567,2649.1,2649.0,7.0062]
[1752073864551,1.39567,2649.1,2649.0,6.2513]
[1752073865053,1.39567,2649.1,2649.0,3.7984]
[1752073865250,5.63490248,2649.1,2649.0,2.3763]
[1752073865448,0.75504,2648.5,2648.4,7.68807198]
[1752073865652,5.63507248,2648.5,2648.4,3.2078]
[1752073865953,1.39584,2648.5,2648.4,1.42227]
[1752073866157,1.39584,2648.5,2648.4,0.6672]
[1752073866457,0.75507,2648.4,2648.3,5.23537198]
[1752073866754,1.39587,2648.4,2648.3,8.28887198]
[1752073867145,1.39587,2648.4,2648.3,7.53377198]
[1752073867548,1.39587,2648.4,2648.3,8.28887198]
[1752073868150,1.39587,2648.4,2648.3,7.53377198]
[1752073868351,5.63510248,2648.4,2648.3,4.48027198]
[1752073868547,0.75513,2648.2,2648.1,7.68807198]
[1752073868855,0.75513,2648.2,2648.1,7.71600582]
[1752073869057,0.75516,2648.1,2648.0,4.50820582]
[1752073869248,4.06649248,2648.1,2648.0,4.50820582]
[1752073869450,0.75527,2647.7,2647.6,2.2953]
[1752073869654,4.06660248,2647.7,2647.6,2.2953]
[1752073869853,44.86660248,2647.7,2647.6,2.9625]
[1752073870758,41.55527,2647.7,2647.6,3.7178]
[1752073871656,40.8,2647.7,2647.6,3.7178]
[1752073871857,26.459,2648.2,2648.1,0.75516]
[1752073872059,26.459,2648.2,2647.7,1.88812]
[1752073872060,3.08842,2648.3,2648.2,0.75513]
[1752073872256,3.70622,2648.3,2648.2,0.75513]
[1752073872453,41.4178,2648.3,2648.2,0.75513]
[1752073872653,0.6178,2648.3,2648.2,0.75513]
[1752073872853,0.6178,2648.3,2648.2,2.98353]
[1752073873455,40.8,2648.5,2648.4,0.75507]
[1752073873851,0.75501,2648.6,2648.5,0.75504]
[1752073874057,1.37281,2648.6,2648.5,0.75504]
[1752073874457,42.17281,2648.6,2648.4,0.75505]
[1752073874658,42.17281,2648.6,2648.3,2.2284]
[1752073874659,41.4178,2648.6,2648.3,2.98349]
[1752073874859,44.72913248,2648.6,2648.2,0.6296]
[1752073875361,0.75508,2648.4,2648.2,1.3847]
[1752073875558,0.7551,2648.3,2648.2,0.7551]
[1752073875758,0.7551,2648.3,2648.2,1.3847]
[1752073875962,0.75509,2648.4,2648.3,0.75509]
[1752073876460,0.7551,2648.3,2648.2,1.38471]
[1752073876658,2.2758,2648.5,2648.0,3.2078]
[1752073877057,2.8936,2648.5,2648.4,1.38467]
[1752073877260,3.64864,2648.5,2648.4,0.6296]
[1752073877560,2.8936,2648.5,2648.2,0.75511]
[1752073877761,0.75509,2648.4,2648.3,0.7551]
[1752073877962,0.75509,2648.4,2648.3,1.3847]
[1752073878160,0.75507,2648.4,2648.3,1.38468]
[1752073878862,1.37287,2648.4,2648.3,0.6296]
[1752073879461,0.7551,2648.3,2648.2,2.3781]
[1752073879658,0.75513,2648.2,2648.1,2.217]
[1752073879866,0.75513,2648.2,2648.1,2.8466]
[1752073880461,3.2828,2648.5,2648.1,2.8466]
[1752073880665,0.75508,2648.4,2648.3,0.75508]
[1752073880964,1.37288,2648.4,2648.3,1.38468]
[1752073881263,0.75508,2648.4,2648.3,0.6296]
[1752073881460,1.37287,2648.4,2648.3,1.38467]
[1752073882862,1.6248,2648.4,2648.1,2.97215]
[1752073883067,6.59303248,2648.3,2648.0,3.2078]
[1752073883263,3.64761,2648.3,2648.2,1.38473]
[1752073883464,0.75513,2648.2,2648.1,2.96843]
[1752073883665,1.007,2648.5,2648.2,0.6296]
[1752073883863,26.448,2648.5,2648.4,0.75507]
[1752073884065,27.82086,2648.5,2648.4,1.38467]
[1752073884464,0.75506,2648.5,2648.4,3.69377]
[1752073884660,40.8,2648.6,2648.4,2.9387]
[1752073884865,27.203,2648.7,2648.6,0.75501]
[1752073885064,27.8208,2648.7,2648.6,1.38461]
[1752073885567,68.6198,2648.7,2648.6,1.38461]
[1752073886067,3.2078,2649.0,2648.6,2.51712]
[1752073886263,0.75496,2648.8,2648.7,2.3091]
[1752073886460,1.37276,2648.8,2648.7,3.69369]
[1752073886768,0.75495,2648.9,2648.8,0.75494]
[1752073887066,67.99992,2649.0,2648.9,0.75493]
[1752073887263,40.8,2649.0,2648.9,1.38453]
[1752073887469,41.5549,2649.0,2648.9,1.38453]
[1752073887667,41.4178,2649.0,2648.9,3.77473]
[1752073887965,0.7549,2649.0,2648.9,3.77473]
[1752073888166,1.3727,2649.0,2648.9,3.77473]
[1752073888558,41.5549,2649.1,2649.0,0.7549]
[1752073888764,0.7549,2649.0,2648.9,2.3902]
[1752073888966,1.3727,2649.0,2648.9,3.77473]
[1752073889161,40.8,2649.1,2649.0,0.7549]
[1752073889368,67.8588,2649.1,2649.0,1.3845]
[1752073889670,0.75486,2649.2,2649.1,0.75487]
[1752073889860,0.75488,2649.1,2649.0,0.75488]
[1752073890059,41.55488,2649.1,2649.0,1.38448]
[1752073890266,40.8,2649.1,2649.0,1.38448]
[1752073890565,41.55487,2649.1,2649.0,1.38448]
[1752073890766,40.8,2649.1,2649.0,1.38448]
[1752073890969,0.75486,2649.2,2649.0,3.8374]
[1752073891170,0.75486,2649.2,2649.1,3.15134]
[1752073891373,1.37266,2649.2,2649.1,3.78094]
[1752073891566,2.3181,2649.3,2649.1,3.78094]
[1752073891567,3.07293,2649.3,2649.2,0.75484]
[1752073891767,3.69073,2649.3,2649.2,1.38444]
[1752073892171,1.007,2649.4,2649.3,0.75481]
[1752073892172,26.436,2649.4,2649.3,0.75481]
[1752073892371,27.19079,2649.4,2649.3,1.38441]
[1752073892670,28.81559,2649.4,2649.3,0.75481]